Workbook

Sheet Лист1
A1: Школа | C1: МБОУ "Гимназия №18- "Галэм" Приволжского района г. Казани | F1: Утвердил: | G1: должность | H1: Заместитель генерального директора АО "Департамент продовольствия и социального питания" г.Казань
A2: Типовое примерное меню приготавливаемых блюд | G2: фамилия | H2: Агапова А. К.
A3: Возрастная категория | E3: 7-11 лет | G3: дата | H3: 9 | I3: 1 | J3: 2026
H4: день | I4: месяц | J4: год
A5: Неделя | B5: День недели | C5: Прием пищи | D5: Раздел меню | E5: Блюда | F5: Вес блюда, г | G5: Белки | H5: Жиры | I5: Углеводы | J5: Калорийность | K5: № рецептуры | L5: Цена
A6: 1 | B6: 1 | C6: Завтрак | D6: гор.блюдо | E6: Котлеты из мяса птицы | F6: 90 | G6: 10.493 | H6: 9.730 | I6: 6.771 | J6: 157 | K6: ТТК от 2024 г
D7: гор.блюдо | E7: Каша гречневая рассыпчатая | F7: 150 | G7: 6.622 | H7: 5.399 | I7: 25.875 | J7: 179 | K7: №302/2015г,Дели
D8: гор.напиток | E8: Напиток из вишни | F8: 200 | G8: 0.120 | H8: 0.030 | I8: 11.570 | J8: 48 | K8: ТТК №2694 от 14.09.2023 г
D9: хлеб | E9: Хлеб ржано-пшеничный/ Хлеб пшеничный | F9: 40 | G9: 2.520 | H9: 0.360 | I9: 18.840 | J9: 91
D10: фрукты | E10: Плоды и ягоды свежие (яблоки) | F10: 100 | G10: 0.400 | H10: 0.400 | I10: 9.800 | J10: 47 | K10: №338 Дели 2015г
E11: Фруктовое пюре | F11: 125 | G11: 0.000 | H11: 0.000 | I11: 15 | J11: 60
D13: итого | F13: =SUM(F6:F12) -> 705 | G13: 20.155 | H13: 15.919 | I13: 87.856 | J13: 582 | L13: 92.76
A14: =A6 -> 1 | B14: 1 | C14: Обед | D14: закуска
D15: 1 блюдо
D16: 2 блюдо
D17: гарнир
D18: напиток
D19: хлеб бел.
D20: хлеб черн.
D23: итого | F23: =SUM(F14:F22) -> 0 | G23: 0 | H23: 0 | I23: 0 | J23: 0 | L23: =SUM(L14:L22) -> 0
A24: =A6 -> 1 | B24: 1 | C24: Итого за день: | F24: =F13+F23 -> 705 | G24: 20.155 | H24: 15.919 | I24: 87.856 | J24: 582 | L24: =L13+L23 -> 92.76
A25: 1 | B25: 2 | C25: Завтрак | D25: гор.блюдо | E25: Жаркое из птицы (грудки куриные) | F25: 190 | G25: 11.912 | H25: 10.698 | I25: 29.090 | J25: 260 | K25: ТТК № 2739 от 07.12.2023г
D27: гор.напиток | E27: Напиток яблочный | F27: 200 | G27: 0.100 | H27: 0.1 | I27: 12.430 | J27: 52 | K27: ТТК №2693 от 14.09.2023 г
D28: хлеб | E28: Хлеб ржано-пшеничный/ Хлеб пшеничный | F28: 40 | G28: 2.520 | H28: 0.360 | I28: 18.840 | J28: 91
D30: закуска | E30: Салат из белокочанной капусты | F30: 60 | G30: 0.931 | H30: 3.051 | I30: 5.645 | J30: 54 | K30: №45/2015г,Дели
E31: Батончик (в ассортименте) | F31: 30 | G31: 1.800 | H31: 6.200 | I31: 15.400 | J31: 128
D33: итого | F33: =SUM(F25:F31) -> 520 | G33: =SUM(G25:G31) -> 17.263 | H33: =SUM(H25:H31) -> 20.409 | I33: =SUM(I25:I31) -> 81.405 | J33: =SUM(J25:J31) -> 585 | L33: 92.76
A34: =A25 -> 1 | B34: =B25 -> 2 | C34: Обед | D34: закуска
D35: 1 блюдо
D36: 2 блюдо
D37: гарнир
D38: напиток
D39: хлеб бел.
D40: хлеб черн.
D43: итого | F43: =SUM(F34:F42) -> 0 | G43: 0 | H43: 0 | I43: 0 | J43: 0 | L43: =SUM(L34:L42) -> 0
A44: =A25 -> 1 | B44: =B25 -> 2 | C44: Итого за день: | F44: =F33+F43 -> 520 | G44: 17.263 | H44: 20.409 | I44: 81.405 | J44: 585 | L44: =L33+L43 -> 92.76
A45: 1 | B45: 3 | C45: Завтрак | D45: гор.блюдо | E45: Гуляш из филе грудок индейки | F45: 90 | G45: 9.002 | H45: 7.246 | I45: 1.873 | J45: 109 | K45: ТТК июль 2021 г
D46: гор.блюдо | E46: Макаронные изделия отварные | F46: 150 | G46: 5.602 | H46: 5.068 | I46: 35.906 | J46: 212 | K46: №309/2015г Дели
D47: гор.напиток | E47: Напиток из шиповника | F47: 200 | G47: 0.012 | H47: 0.001 | I47: 10.178 | J47: 41 | K47: ТТК от 2021г
D48: хлеб | E48: Хлеб ржано-пшеничный/ Хлеб пшеничный | F48: 40 | G48: 2.520 | H48: 0.360 | I48: 18.840 | J48: 91
D50: закуска | E50: Салат из свеклы отварной (с маслом) | F50: 60 | G50: 0.855 | H50: 3.653 | I50: 5.016 | J50: 56 | K50: №52/2015г,Дели
E51: Маффин шоколадный | F51: 30 | G51: 2.068 | H51: 4.341 | I51: 14.864 | J51: 107 | K51: ТТК от 19.06.2025 г
D53: итого | F53: =SUM(F45:F51) -> 570 | G53: 20.059 | H53: 20.669 | I53: 86.677 | J53: 616 | L53: 92.76
A54: =A45 -> 1 | B54: 3 | C54: Обед | D54: закуска
D55: 1 блюдо
D56: 2 блюдо
D57: гарнир
D58: напиток
D59: хлеб бел.
D60: хлеб черн.
D63: итого | F63: =SUM(F54:F62) -> 0 | G63: 0 | H63: 0 | I63: 0 | J63: 0 | L63: =SUM(L54:L62) -> 0
A64: =A45 -> 1 | B64: 3 | C64: Итого за день: | F64: =F53+F63 -> 570 | G64: 20.059 | H64: 20.669 | I64: 86.677 | J64: 616 | L64: =L53+L63 -> 92.76
A65: 1 | B65: 4 | C65: Завтрак | D65: гор.блюдо | E65: Плов с говядиной | F65: 190 | G65: 13.604 | H65: 15.543 | I65: 35.965 | J65: 338 | K65: ТТК 2021г
D67: гор.напиток | E67: Компот из свежих плодов (яблоки) | F67: 200 | G67: 0.080 | H67: 0.080 | I67: 11.940 | J67: 49 | K67: ТТК от 2021г
D68: хлеб | E68: Хлеб ржано-пшеничный/ Хлеб пшеничный | F68: 40 | G68: 2.520 | H68: 0.360 | I68: 18.840 | J68: 91
D69: фрукты | E69: Плоды и ягоды свежие (яблоки) | F69: 100 | G69: 0.400 | H69: 0.400 | I69: 9.800 | J69: 47 | K69: №338 Дели 2015г
E70: Печенье сдобное шоколадное | F70: 15 | G70: 1.166 | H70: 4.183 | I70: 9.224 | J70: 79 | K70: ТТК(Акт19.09.2018г)
D72: итого | F72: =SUM(F65:F71) -> 545 | G72: 17.77 | H72: 20.566 | I72: 85.769 | J72: 604 | L72: 92.76
A73: =A65 -> 1 | B73: 4 | C73: Обед | D73: закуска
D74: 1 блюдо
D75: 2 блюдо
D76: гарнир
D77: напиток
D78: хлеб бел.
D79: хлеб черн.
D82: итого | F82: =SUM(F73:F81) -> 0 | G82: 0 | H82: 0 | I82: 0 | J82: 0 | L82: =SUM(L73:L81) -> 0
A83: =A65 -> 1 | B83: 4 | C83: Итого за день: | F83: =F72+F82 -> 545 | G83: 17.77 | H83: 20.566 | I83: 85.769 | J83: 604 | L83: =L72+L82 -> 92.76
A84: 1 | B84: 5 | C84: Завтрак | D84: гор.блюдо | E84: Котлеты аппетитные мясо-куриные | F84: 90 | G84: 9.069 | H84: 6.869 | I84: 8.996 | J84: 134 | K84: ТТК от 01.11.2022 г
D85: гор.блюдо | E85: Пюре картофельное | F85: 150 | G85: 3.282 | H85: 4.657 | I85: 22.027 | J85: 146 | K85: №312/2015г Дели
D86: гор.напиток | E86: Чай с сахаром | F86: 208 | G86: 0.007 | H86: 0.002 | I86: 7.986 | J86: 32 | K86: ТТК от 2021г
D87: хлеб | E87: Хлеб ржано-пшеничный/ Хлеб пшеничный | F87: 40 | G87: 2.520 | H87: 0.360 | I87: 18.840 | J87: 91
D89: закуска | E89: Салат из моркови | F89: 60 | G89: 0.702 | H89: 3.051 | I89: 6.720 | J89: 58 | K89: №49 Сбор.2004г./ТТК
E90: Вафли весовые 1 шт | F90: 21 | G90: 2.75 | H90: 2.5 | I90: 13 | J90: 86
D92: итого | F92: =SUM(F84:F90) -> 569 | G92: 18.33 | H92: 17.439 | I92: 77.569 | J92: 547 | L92: 92.76
A93: =A84 -> 1 | B93: 5 | C93: Обед | D93: закуска
D94: 1 блюдо
D95: 2 блюдо
D96: гарнир
D97: напиток
D98: хлеб бел.
D99: хлеб черн.
D102: итого | F102: =SUM(F93:F101) -> 0 | G102: 0 | H102: 0 | I102: 0 | J102: 0 | L102: =SUM(L93:L101) -> 0
A103: =A84 -> 1 | B103: 5 | C103: Итого за день: | F103: =F92+F102 -> 569 | G103: 18.33 | H103: 17.439 | I103: 77.569 | J103: 547 | L103: =L92+L102 -> 92.76
A104: 2 | B104: 1 | C104: Завтрак | D104: гор.блюдо | E104: Котлеты куриные "Нежные" | F104: 90 | G104: 10.857 | H104: 10.288 | I104: 8.947 | J104: 172 | K104: ТТК №1517 от 28.07.2021г
D105: гор.блюдо | E105: Каша гречневая рассыпчатая | F105: 150 | G105: 6.622 | H105: 5.399 | I105: 25.875 | J105: 179 | K105: №302/2015г,Дели
D106: гор.напиток | E106: Напиток из вишни | F106: 200 | G106: 0.120 | H106: 0.030 | I106: 11.570 | J106: 48 | K106: ТТК №2694 от 14.09.2023 г
D107: хлеб | E107: Хлеб ржано-пшеничный/ Хлеб пшеничный | F107: 40 | G107: 2.520 | H107: 0.360 | I107: 18.840 | J107: 91
E109: Фруктовое пюре | F109: 125 | G109: 0.000 | H109: 0.000 | I109: 15.000 | J109: 60
D111: итого | F111: =SUM(F104:F109) -> 605 | G111: =SUM(G104:G109) -> 20.119 | H111: =SUM(H104:H109) -> 16.077 | I111: =SUM(I104:I109) -> 80.232 | J111: =SUM(J104:J109) -> 550 | L111: 92.76
A112: =A104 -> 2 | B112: 1 | C112: Обед | D112: закуска
D113: 1 блюдо
D114: 2 блюдо
D115: гарнир
D116: напиток
D117: хлеб бел.
D118: хлеб черн.
D121: итого | F121: =SUM(F112:F120) -> 0 | G121: 0 | H121: 0 | I121: 0 | J121: 0 | L121: =SUM(L112:L120) -> 0
A122: =A104 -> 2 | B122: 1 | C122: Итого за день: | F122: =F111+F121 -> 605 | G122: 20.119 | H122: 16.077 | I122: 80.232 | J122: 550 | L122: =L111+L121 -> 92.76
A123: 2 | B123: 2 | C123: Завтрак | D123: гор.блюдо | E123: Жаркое по-домашнему | F123: 190 | G123: 12.616 | H123: 13.616 | I123: 28.791 | J123: 289 | K123: ТТК 2023г
D125: гор.напиток | E125: Чай с сахаром | F125: 208 | G125: 0.007 | H125: 0.002 | I125: 7.986 | J125: 32 | K125: ТТК от 2021г
D126: хлеб | E126: Хлеб ржано-пшеничный/ Хлеб пшеничный | F126: 40 | G126: 2.520 | H126: 0.360 | I126: 18.840 | J126: 91
D128: закуска | E128: Салат из белокочанной капусты | F128: 60 | G128: 0.931 | H128: 3.051 | I128: 5.645 | J128: 54 | K128: №45/2015г,Дели
E129: Вафли весовые 1 шт | F129: 21 | G129: 2.750 | H129: 2.500 | I129: 13.000 | J129: 86
D131: итого | F131: =SUM(F123:F129) -> 519 | G131: 18.824 | H131: 19.529 | I131: 74.262 | J131: 552 | L131: 92.76
A132: =A123 -> 2 | B132: 2 | C132: Обед | D132: закуска
D133: 1 блюдо
D134: 2 блюдо
D135: гарнир
D136: напиток
D137: хлеб бел.
D138: хлеб черн.
D141: итого | F141: =SUM(F132:F140) -> 0 | G141: 0 | H141: 0 | I141: 0 | J141: 0 | L141: =SUM(L132:L140) -> 0
A142: =A123 -> 2 | B142: 2 | C142: Итого за день: | F142: =F131+F141 -> 519 | G142: 18.824 | H142: 19.529 | I142: 74.262 | J142: 552 | L142: =L131+L141 -> 92.76
A143: 2 | B143: 3 | C143: Завтрак | D143: гор.блюдо | E143: Плов с куриными грудками | F143: 190 | G143: 12.760 | H143: 13.684 | I143: 32.883 | J143: 306 | K143: ТТК 2021г
D145: гор.напиток | E145: Напиток из шиповника | F145: 200 | G145: 0.012 | H145: 0.001 | I145: 10.178 | J145: 41 | K145: ТТК от 2021г
D146: хлеб | E146: Хлеб ржано-пшеничный/ Хлеб пшеничный | F146: 40 | G146: 2.520 | H146: 0.360 | I146: 18.840 | J146: 91
D147: фрукты | E147: Плоды и ягоды свежие (яблоки) | F147: 100 | G147: 0.400 | H147: 0.400 | I147: 9.800 | J147: 47 | K147: №338 Дели 2015г
E149: Батончик (в ассортименте) | F149: 30 | G149: 1.800 | H149: 6.200 | I149: 15.400 | J149: 128
D151: итого | F151: =SUM(F143:F149) -> 560 | G151: =SUM(G143:G149) -> 17.492 | H151: 20.645 | I151: 87.101 | J151: 613 | L151: 92.76
A152: =A143 -> 2 | B152: 3 | C152: Обед | D152: закуска
D153: 1 блюдо
D154: 2 блюдо
D155: гарнир
D156: напиток
D157: хлеб бел.
D158: хлеб черн.
D161: итого | F161: =SUM(F152:F160) -> 0 | G161: 0 | H161: 0 | I161: 0 | J161: 0 | L161: =SUM(L152:L160) -> 0
A162: =A143 -> 2 | B162: 3 | C162: Итого за день: | F162: =F151+F161 -> 560 | G162: 17.492 | H162: 20.645 | I162: 87.101 | J162: 613 | L162: =L151+L161 -> 92.76
A163: 2 | B163: 4 | C163: Завтрак | D163: гор.блюдо | E163: Фрикассе из куриных грудок | F163: 90 | G163: 8.150 | H163: 5.604 | I163: 3.241 | J163: 96 | K163: ТТК июль 2021г
D164: гор.блюдо | E164: Макаронные изделия отварные | F164: 150 | G164: 5.602 | H164: 5.068 | I164: 35.906 | J164: 212 | K164: №309/2015г Дели
D165: гор.напиток | E165: Чай с сахаром | F165: 208 | G165: 0.007 | H165: 0.002 | I165: 7.986 | J165: 32 | K165: ТТК от 2021г
D166: хлеб | E166: Хлеб ржано-пшеничный/ Хлеб пшеничный | F166: 40 | G166: 2.520 | H166: 0.360 | I166: 18.840 | J166: 91
D168: закуска | E168: Салат любительский | F168: 60 | G168: 0.971 | H168: 5.053 | I168: 3.05 | J168: 63 | K168: ТТК от 3.02.2022
E169: Кекс Волжский | F169: 50 | G169: 2.754 | H169: 3.843 | I169: 18.934 | J169: 121 | K169: Актк/прораб. 10.11.2015г
D171: итого | F171: =SUM(F163:F169) -> 598 | G171: 20.004 | H171: 19.93 | I171: 87.957 | J171: 615 | L171: 92.76
A172: =A163 -> 2 | B172: 4 | C172: Обед | D172: закуска
D173: 1 блюдо
D174: 2 блюдо
D175: гарнир
D176: напиток
D177: хлеб бел.
D178: хлеб черн.
D181: итого | F181: =SUM(F172:F180) -> 0 | G181: 0 | H181: 0 | I181: 0 | J181: 0 | L181: =SUM(L172:L180) -> 0
A182: =A163 -> 2 | B182: 4 | C182: Итого за день: | F182: =F171+F181 -> 598 | G182: 20.004 | H182: 19.93 | I182: 87.957 | J182: 615 | L182: =L171+L181 -> 92.76
A183: 2 | B183: 5 | C183: Завтрак | D183: гор.блюдо | E183: Котлеты сытные | F183: 90 | G183: 11.659 | H183: 8.304 | I183: 8.104 | J183: 154 | K183: ТТК №3410 от 06.10.2023г
D184: гор.блюдо | E184: Пюре картофельное | F184: 150 | G184: 3.282 | H184: 4.657 | I184: 22.027 | J184: 146 | K184: ТТК
D185: гор.напиток | E185: Напиток из урюка | F185: 200 | G185: 0.800 | H185: 0.064 | I185: 9.460 | J185: 42 | K185: ТТК №2693 от 14.09.2023г
D186: хлеб | E186: Хлеб ржано-пшеничный/ Хлеб пшеничный | F186: 40 | G186: 2.520 | H186: 0.360 | I186: 18.840 | J186: 91
D188: закуска | E188: Салат из моркови | F188: 60 | G188: 0.702 | H188: 3.051 | I188: 6.720 | J188: 58 | K188: №49 Сбор.2004г./ТТК
E189: Печенье сдобное Американер с кунжутом | F189: 15 | G189: 1.246 | H189: 4.314 | I189: 9.270 | J189: 81
D191: итого | F191: =SUM(F183:F189) -> 555 | G191: 20.209 | H191: 20.75 | I191: 74.421 | J191: 572 | L191: 92.76
A192: =A183 -> 2 | B192: 5 | C192: Обед | D192: закуска
D193: 1 блюдо
D194: 2 блюдо
D195: гарнир
D196: напиток
D197: хлеб бел.
D198: хлеб черн.
D201: итого | F201: =SUM(F192:F200) -> 0 | G201: 0 | H201: 0 | I201: 0 | J201: 0 | L201: =SUM(L192:L200) -> 0
A202: =A183 -> 2 | B202: 5 | C202: Итого за день: | F202: =F191+F201 -> 555 | G202: 20.209 | H202: 20.75 | I202: 74.421 | J202: 572 | L202: =L191+L201 -> 92.76
C203: Среднее значение за период: | F203: =(F24+F44+F64+F83+F103+F122+F142+F162+F182+F202)/(IF(F24=0,0,1)+IF(F44=0,0,1)+IF(F64=0,0,1)+IF(F83=0,0,1)+IF(F103=0,0,1)+IF(F122=0,0,1)+IF(F142=0,0,1)+IF(F162=0,0,1)+IF(F182=0,0,1)+IF(F202=0,0,1)) -> 574.6 | G203: =(G24+G44+G64+G83+G103+G122+G142+G162+G182+G202)/(IF(G24=0,0,1)+IF(G44=0,0,1)+IF(G64=0,0,1)+IF(G83=0,0,1)+IF(G103=0,0,1)+IF(G122=0,0,1)+IF(G142=0,0,1)+IF(G162=0,0,1)+IF(G182=0,0,1)+IF(G202=0,0,1)) -> 19.0225 | H203: =(H24+H44+H64+H83+H103+H122+H142+H162+H182+H202)/(IF(H24=0,0,1)+IF(H44=0,0,1)+IF(H64=0,0,1)+IF(H83=0,0,1)+IF(H103=0,0,1)+IF(H122=0,0,1)+IF(H142=0,0,1)+IF(H162=0,0,1)+IF(H182=0,0,1)+IF(H202=0,0,1)) -> 19.1933 | I203: =(I24+I44+I64+I83+I103+I122+I142+I162+I182+I202)/(IF(I24=0,0,1)+IF(I44=0,0,1)+IF(I64=0,0,1)+IF(I83=0,0,1)+IF(I103=0,0,1)+IF(I122=0,0,1)+IF(I142=0,0,1)+IF(I162=0,0,1)+IF(I182=0,0,1)+IF(I202=0,0,1)) -> 82.3249 | J203: =(J24+J44+J64+J83+J103+J122+J142+J162+J182+J202)/(IF(J24=0,0,1)+IF(J44=0,0,1)+IF(J64=0,0,1)+IF(J83=0,0,1)+IF(J103=0,0,1)+IF(J122=0,0,1)+IF(J142=0,0,1)+IF(J162=0,0,1)+IF(J182=0,0,1)+IF(J202=0,0,1)) -> 583.6 | L203: =(L24+L44+L64+L83+L103+L122+L142+L162+L182+L202)/(IF(L24=0,0,1)+IF(L44=0,0,1)+IF(L64=0,0,1)+IF(L83=0,0,1)+IF(L103=0,0,1)+IF(L122=0,0,1)+IF(L142=0,0,1)+IF(L162=0,0,1)+IF(L182=0,0,1)+IF(L202=0,0,1)) -> 92.76
